bitfinex-derivatives/quotes_SOLF0:USTF0_20250501
["timestamp","ask_amount","ask_price","bid_price","bid_amount"]
[1746065438423,6.6982,149.29,149.26,6.6993]
[1746065438618,24.76,149.31,149.26,6.6993]
[1746065438921,6.6985,149.28,149.25,6.6996]
[1746065439718,6.6982,149.29,149.26,6.6992]
[1746065440522,6.6987,149.28,149.25,6.6997]
[1746065441919,6.6987,149.28,149.26,6.6993]
[1746065443022,6.6982,149.29,149.26,6.6993]
[1746065443230,24.76,149.31,149.26,6.6993]
[1746065443419,24.76,149.31,149.21,24.76]
[1746065444026,6.6978,149.3,149.27,6.6986]
[1746065447723,6.698,149.29,149.27,6.6986]
[1746065447927,24.76,149.31,149.21,24.76]
[1746065448327,6.6985,149.28,149.21,24.76]
[1746065449428,6.6985,149.28,149.25,6.6994]
[1746065454131,6.6985,149.28,149.26,6.6993]
[1746065455329,6.6985,149.28,149.25,6.6996]
[1746065459031,6.6985,149.28,149.26,6.6992]
[1746065459530,24.76,149.31,149.21,24.76]
[1746065459531,6.6978,149.3,149.27,6.6988]
[1746065459826,24.76,149.31,149.21,24.76]
[1746065460130,6.698,149.29,149.26,6.699]
[1746065460934,6.698,149.29,149.27,6.6989]
[1746065461433,31.4573,149.31,149.21,24.76]
[1746065461631,24.42,149.34,149.22,31.48982964]
[1746065461826,24.42,149.34,149.25,7.06982964]
[1746065462131,6.6968,149.32,149.26,24.42]
[1746065462834,6.6968,149.32,149.29,6.6978]
[1746065463131,24.42,149.34,149.26,24.42]
[1746065463337,7.06982964,149.33,149.26,24.42]
[1746065463933,6.6978,149.3,149.27,6.6987]
[1746065464737,7.06982964,149.33,149.26,24.42]
[1746065464932,7.06982964,149.33,149.24,24.42]
[1746065465132,24.42,149.34,149.24,24.42]
[1746065465332,7.06982964,149.33,149.24,24.42]
[1746065465534,6.6985,149.28,149.25,6.6995]
[1746065466235,6.6989,149.27,149.24,6.7]
[1746065466428,24.42,149.29,149.21,24.42]
[1746065466834,6.6991,149.27,149.24,6.7002]
[1746065467233,24.42,149.29,149.21,24.42]
[1746065467434,24.42,149.29,149.23,6.7003]
[1746065468129,6.6991,149.27,149.24,6.7]
[1746065468326,24.42,149.29,149.21,24.42]
[1746065468739,6.6993,149.27,149.23,6.7003]
[1746065468936,24.42,149.29,149.23,6.7003]
[1746065469134,24.42,149.29,149.21,24.42]
[1746065469439,6.6996,149.26,149.22,6.7007]
[1746065469940,6.6996,149.26,149.23,6.7004]
[1746065470639,6.6996,149.26,149.24,6.7002]
[1746065471239,6.6991,149.27,149.24,6.7002]
[1746065472246,6.6994,149.26,149.23,6.7005]
[1746065472640,6.6998,149.25,149.23,6.7005]
[1746065472841,6.6998,149.25,149.21,24.42]
[1746065473138,24.42,149.29,149.21,24.42]
[1746065473742,6.6995,149.26,149.21,24.42]
[1746065474242,6.6995,149.26,149.23,6.7004]
[1746065475142,6.6995,149.26,149.24,6.7002]
[1746065475541,6.699,149.27,149.24,6.7002]
[1746065476540,6.6986,149.28,149.25,6.6997]
[1746065477343,6.6989,149.27,149.25,6.6997]
[1746065477536,6.6989,149.27,149.21,24.42]
[1746065477537,6.6989,149.27,149.24,6.7001]
[1746065477733,24.42,149.29,149.24,6.7001]
[1746065477938,24.42,149.29,149.23,6.7005]
[1746065478440,6.6996,149.26,149.23,6.7005]
[1746065479447,6.6999,149.25,149.22,6.7009]
[1746065480147,6.6995,149.26,149.23,6.7006]
[1746065481246,6.6999,149.25,149.22,6.701]
[1746065481646,24.42,149.29,149.22,6.701]
[1746065481847,7.06982964,149.27,149.19,2.1155]
[1746065482149,7.06982964,149.24,149.16,24.22]
[1746065482343,6.7013,149.22,149.18,6.7025]
[1746065482647,31.28982964,149.24,149.18,6.7025]
[1746065482837,6.7016,149.21,149.18,6.7025]
[1746065483346,31.28982964,149.24,149.14,1.9079]
[1746065483543,2.056,149.23,149.14,1.9079]
[1746065484350,7.06982964,149.21,149.13,382.24]
[1746065484644,7.06982964,149.18,149.1,33.98355301]
[1746065484844,7.06982964,149.18,149.12,6.7053]
[1746065485649,7.06982964,149.18,149.13,6.7051]
[1746065486251,6.7036,149.17,149.13,6.7051]
[1746065486954,6.7039,149.16,149.12,6.7054]
[1746065487145,6.7039,149.16,149.1,26.1479]
[1746065487346,7.06982964,149.18,149.1,26.1479]
[1746065487551,6.7035,149.17,149.13,6.7048]
[1746065487850,6.7035,149.17,149.1,26.1479]
[1746065488549,8.7387,149.19,149.1,26.1479]
[1746065488748,2.036,149.19,149.1,26.1479]
[1746065489051,6.7021,149.2,149.17,6.7031]
[1746065491151,30.9418,149.21,149.17,6.7031]
[1746065491854,6.7022,149.2,149.17,6.7031]
[1746065492154,24.24,149.21,149.1,26.1479]
[1746065492354,24.24,149.21,149.12,7.06982964]
[1746065492554,4.0111,149.23,149.13,2.1119]
[1746065492855,10.712,149.23,149.13,2.1119]
[1746065493156,4.0111,149.23,149.14,1.959]
[1746065493447,31.30982964,149.24,149.15,26.1544]
[1746065493646,24.24,149.24,149.15,33.22422964]
[1746065494159,30.9404,149.24,149.21,6.7013]
[1746065495657,6.7007,149.23,149.2,6.7018]
[1746065496758,30.9403,149.24,149.21,6.7016]
[1746065497059,24.24,149.24,149.15,33.22422964]
[1746065497260,24.24,149.24,149.19,6.702]
[1746065498157,6.7008,149.23,149.19,6.702]
[1746065498357,24.24,149.3,149.2,24.24]
[1746065498660,6.6994,149.26,149.2,24.24]
[1746065498852,6.6994,149.26,149.22,6.7008]
[1746065499560,6.6994,149.26,149.23,6.7006]
[1746065499752,6.699,149.27,149.2,24.24]
[1746065500365,26.2072,149.3,149.2,24.24]
[1746065500856,6.6996,149.26,149.2,24.24]
[1746065501161,26.2072,149.3,149.2,24.24]
[1746065501460,6.6995,149.26,149.2,24.24]
[1746065501756,7.06982964,149.28,149.2,24.24]
[1746065502267,6.6991,149.27,149.24,6.7002]
[1746065502463,26.2072,149.3,149.2,24.24]
[1746065502762,6.6986,149.28,149.25,6.6995]
[1746065503160,26.2072,149.3,149.21,9.10362964]
[1746065503161,24.24,149.3,149.21,9.10362964]
[1746065503356,6.6973,149.31,149.28,6.6981]
[1746065503956,6.697,149.32,149.25,24.24]
[1746065504358,24.24,149.33,149.25,24.24]
[1746065504662,6.6968,149.32,149.28,6.6982]
[1746065504862,24.24,149.33,149.28,6.6982]
[1746065505664,24.24,149.33,149.29,6.6979]
[1746065505869,30.9363,149.33,149.29,6.6979]
[1746065506158,24.24,149.33,149.29,6.6979]
[1746065506357,24.24,149.33,149.28,6.6983]
[1746065506660,6.6971,149.32,149.28,6.6983]
[1746065507364,24.24,149.33,149.25,26.2252]
[1746065507964,24.24,149.33,149.26,6.6992]
[1746065508366,24.24,149.33,149.25,26.2252]
[1746065508661,24.24,149.33,149.27,6.6989]
[1746065509164,24.22,149.36,149.25,26.2252]
[1746065509361,24.22,149.36,149.26,2.084]
[1746065509564,6.6959,149.34,149.27,2.0047]
[1746065510254,6.6954,149.35,149.27,2.0047]
[1746065510965,6.6959,149.34,149.31,6.6968]
[1746065513070,24.22,149.36,149.29,24.28]
[1746065513071,31.28982964,149.36,149.29,24.28]
[1746065513763,6.6958,149.34,149.29,30.9779]
[1746065513968,35.20212964,149.4,149.27,9.07452964]
[1746065514159,35.20212964,149.4,149.3,24.28]
[1746065514363,6.6952,149.36,149.32,6.6965]
[1746065514869,6.6952,149.36,149.3,24.28]
[1746065516166,6.6952,149.36,149.33,6.6961]
[1746065518267,6.6945,149.37,149.34,6.6957]
[1746065518667,35.20212964,149.4,149.3,24.28]
[1746065518859,6.6939,149.39,149.31,1.9322]
[1746065519467,6.6939,149.39,149.36,6.6948]
[1746065520965,6.694,149.38,149.35,6.6951]
[1746065521174,24.28,149.4,149.34,24.26]
[1746065521471,24.28,149.4,149.31,3.9299]
[1746065521770,6.694,149.38,149.35,6.695]
[1746065521966,24.28,149.4,149.31,3.9299]
[1746065522173,31.34982964,149.4,149.32,24.26]
[1746065522367,31.34982964,149.4,149.33,6.6961]
[1746065522567,31.34982964,149.4,149.32,24.26]
[1746065523172,6.6942,149.38,149.35,6.6953]
[1746065525472,6.6945,149.37,149.34,6.6956]
[1746065525673,31.34982964,149.4,149.32,26.2626]
[1746065526072,6.6944,149.37,149.32,26.2626]
[1746065526774,6.6941,149.38,149.35,6.6952]
[1746065527174,31.34982964,149.4,149.32,26.2626]
[1746065527376,31.34982964,149.4,149.29,24.26]
[1746065527581,7.06982964,149.37,149.29,24.26]
[1746065527766,6.6961,149.34,149.31,6.6968]
[1746065528477,6.6955,149.35,149.31,6.6968]
[1746065529175,6.6958,149.34,149.3,6.6973]
[1746065529477,6.6958,149.34,149.29,24.26]
[1746065530474,6.6962,149.33,149.29,24.26]
[1746065530683,6.6962,149.33,149.28,24.26]
[1746065531680,24.26,149.36,149.28,24.26]
[1746065532495,6.6956,149.35,149.28,24.26]
[1746065532792,24.26,149.36,149.28,24.26]
[1746065533195,6.696,149.34,149.31,6.6968]
[1746065533492,24.26,149.36,149.28,24.26]
[1746065534188,26.3327,149.39,149.28,24.26]
[1746065534791,6.6944,149.38,149.34,6.6954]
[1746065534991,26.3327,149.39,149.34,6.6954]
[1746065535895,6.6947,149.37,149.34,6.6954]
[1746065536195,6.6947,149.37,149.33,6.696]
[1746065536397,6.6947,149.37,149.28,31.32982964]
[1746065536895,26.3327,149.39,149.28,31.32982964]
[1746065537391,26.3327,149.39,149.31,6.6967]
[1746065537593,6.6953,149.36,149.28,31.32982964]
[1746065537996,26.3327,149.39,149.28,31.32982964]
[1746065538198,26.3327,149.39,149.31,6.6967]
[1746065540098,26.3327,149.39,149.32,6.6966]
[1746065540302,6.6954,149.35,149.32,6.6966]
[1746065540898,26.3327,149.39,149.28,24.26]
[1746065541094,26.3327,149.39,149.28,31.32982964]
[1746065541799,6.6947,149.37,149.33,6.6958]
[1746065541999,6.6947,149.37,149.28,31.32982964]
[1746065542200,26.3327,149.39,149.28,31.32982964]
[1746065543003,26.3327,149.39,149.34,6.6954]
[1746065543004,6.6943,149.38,149.34,6.6954]
[1746065543197,6.6943,149.38,149.32,24.16]
[1746065543602,6.6945,149.37,149.34,6.6955]
[1746065544103,26.3327,149.39,149.32,24.16]
[1746065544399,26.3327,149.39,149.35,6.6951]
[1746065544601,26.3327,149.39,149.32,24.16]
[1746065544801,6.6947,149.37,149.34,6.6956]
[1746065545800,6.6949,149.36,149.33,6.696]
[1746065547103,6.6956,149.35,149.32,30.8566]
[1746065547400,26.3327,149.39,149.32,24.16]
[1746065547603,6.6948,149.37,149.34,6.6955]
[1746065548001,26.3327,149.39,149.32,24.16]
[1746065548204,6.694,149.38,149.35,6.695]
[1746065548606,26.3327,149.39,149.32,24.16]
[1746065548796,6.6946,149.37,149.34,6.6954]
[1746065550304,6.6949,149.36,149.33,6.696]
[1746065551105,6.6954,149.35,149.32,30.8565]
[1746065551506,6.6954,149.35,149.32,6.6965]
[1746065551910,33.40252964,149.39,149.29,24.16]
[1746065553007,6.6949,149.36,149.33,6.6959]
[1746065553600,6.6956,149.35,149.29,24.16]
[1746065553806,33.40252964,149.39,149.29,24.16]
[1746065554210,6.6952,149.36,149.32,6.6963]
[1746065554508,33.40252964,149.39,149.32,6.6963]
[1746065554702,6.696,149.34,149.31,6.697]
[1746065555307,6.6963,149.33,149.31,6.697]
[1746065555707,33.40252964,149.39,149.31,6.697]
[1746065555898,6.6961,149.34,149.31,6.697]
[1746065556100,33.40252964,149.39,149.32,6.6966]
[1746065556706,6.6956,149.35,149.32,6.6966]
[1746065559801,6.6958,149.34,149.31,6.6969]
[1746065560309,6.6955,149.35,149.32,6.6966]
[1746065561515,6.695,149.36,149.33,6.6962]
[1746065564512,6.6946,149.37,149.28,31.22982964]
[1746065564914,6.6949,149.36,149.33,6.6958]
[1746065565813,6.6949,149.36,149.34,6.6957]
[1746065566514,6.6954,149.35,149.28,31.22982964]
[1746065566815,33.40252964,149.39,149.28,31.22982964]
[1746065567121,33.40252964,149.39,149.28,24.16]
[1746065567815,6.6965,149.33,149.3,6.6973]
[1746065568214,24.16,149.35,149.28,24.16]
[1746065568415,24.16,149.34,149.28,24.16]
[1746065568913,6.6974,149.31,149.28,30.8583]
[1746065569312,6.6974,149.31,149.28,24.16]
[1746065569512,6.6974,149.31,149.28,30.8581]
[1746065570013,6.6974,149.31,149.28,6.6981]
[1746065571518,6.6974,149.31,149.29,6.6979]
[1746065571811,6.6968,149.32,149.29,6.6979]
[1746065572016,2.0727,149.39,149.25,37.43972964]
[1746065572017,7.06982964,149.38,149.25,37.43972964]
[1746065572315,24.16,149.37,149.28,7.06982964]
[1746065572508,24.16,149.37,149.29,24.16]
[1746065573116,6.6956,149.35,149.31,6.6969]
[1746065573317,6.6956,149.35,149.29,24.16]
[1746065573716,6.6959,149.34,149.29,24.16]
[1746065574120,24.16,149.37,149.29,24.16]
[1746065574318,6.696,149.34,149.31,6.6968]
[1746065574511,24.16,149.37,149.31,6.6968]
[1746065575319,6.6956,149.35,149.32,6.6965]
[1746065576619,24.16,149.37,149.31,6.6969]
[1746065576620,6.6958,149.34,149.31,6.6969]
[1746065576920,6.6958,149.34,149.29,24.16]
[1746065577519,6.6954,149.35,149.32,6.6964]
[1746065577713,24.16,149.37,149.29,24.16]
[1746065578020,6.6955,149.35,149.32,6.6963]
[1746065583523,6.6949,149.36,149.33,6.6958]
[1746065583821,24.16,149.37,149.29,24.16]
[1746065584017,6.6949,149.36,149.32,6.6966]
[1746065584222,6.6949,149.36,149.3,1.9835]
[1746065584820,6.6949,149.36,149.33,6.6959]
[1746065585822,6.6953,149.35,149.33,6.6959]
[1746065586523,6.6953,149.35,149.32,6.6964]
[1746065587524,24.16,149.37,149.29,24.16]
[1746065587927,26.1957,149.37,149.26,26.1792]
[1746065588424,26.1957,149.37,149.29,6.6977]
[1746065588925,26.1957,149.37,149.28,6.6982]
[1746065588926,6.6969,149.32,149.28,6.6982]
[1746065589523,7.06982964,149.35,149.27,6.6987]
[1746065589524,24.16,149.33,149.27,6.6987]
[1746065590228,6.6973,149.31,149.27,6.6987]
[1746065590528,24.16,149.33,149.27,6.6987]
[1746065590727,6.6975,149.31,149.27,6.6987]
[1746065591028,24.16,149.33,149.27,6.6987]
[1746065591220,24.16,149.33,149.23,2.084]
[1746065591427,7.06982964,149.32,149.23,26.244]
[1746065591626,9.14372964,149.32,149.23,26.244]
[1746065591927,9.14372964,149.32,149.23,24.16]
[1746065592224,9.14372964,149.32,149.21,24.16]
[1746065592225,7.06982964,149.29,149.21,24.16]
[1746065592430,6.7001,149.25,149.21,6.7013]
[1746065592623,28.2482,149.28,149.18,28.287]
[1746065593530,28.2482,149.28,149.19,7.06982964]
[1746065594226,6.6991,149.27,149.23,6.7004]
[1746065594421,28.2482,149.28,149.18,28.287]
[1746065594628,6.6998,149.25,149.21,6.7015]
[1746065594825,28.2482,149.28,149.18,28.287]
[1746065595931,6.6989,149.27,149.24,6.7002]
[1746065596128,24.16,149.28,149.19,7.06982964]
[1746065596525,24.16,149.28,149.25,6.6997]
[1746065596726,9.14372964,149.32,149.22,24.16]
[1746065596926,33.30372964,149.32,149.22,24.16]
[1746065597123,6.6975,149.31,149.27,6.6985]
[1746065599032,6.6975,149.31,149.28,6.6984]
[1746065599238,30.8567,149.32,149.23,1.9426]
[1746065599426,30.8567,149.32,149.24,1.9395]
[1746065599936,6.6972,149.31,149.24,1.9395]
[1746065600431,6.6972,149.31,149.28,6.6984]
[1746065600632,30.8568,149.32,149.24,3.9139]
[1746065600836,30.8568,149.32,149.26,24.16]
[1746065602234,6.6963,149.33,149.26,24.16]
[1746065602634,6.6963,149.33,149.29,6.6976]
[1746065603233,6.6963,149.33,149.3,6.6974]
[1746065603440,6.6959,149.34,149.26,24.16]
[1746065604542,6.6959,149.34,149.31,6.697]
[1746065608842,6.6963,149.33,149.3,6.6974]
[1746065609044,24.16,149.35,149.25,7.06982964]
[1746065609233,24.16,149.35,149.26,24.14]
[1746065609437,24.16,149.35,149.28,6.6983]
[1746065610148,24.16,149.35,149.27,6.6987]
[1746065610444,24.16,149.35,149.26,24.14]
[1746065610746,24.16,149.35,149.29,6.6977]
[1746065610941,24.16,149.35,149.26,24.14]
[1746065611348,6.6964,149.33,149.3,6.6972]
[1746065611554,24.16,149.35,149.26,24.14]
[1746065611946,6.6961,149.34,149.26,24.14]
[1746065612252,24.16,149.35,149.26,24.14]
[1746065613051,30.8556,149.35,149.26,24.14]
[1746065614249,30.8556,149.35,149.32,6.6966]
[1746065615449,30.8556,149.35,149.26,24.14]
[1746065615644,24.16,149.35,149.26,24.14]
[1746065616156,6.6963,149.33,149.3,6.6974]
[1746065616451,24.16,149.35,149.26,24.14]
[1746065617051,6.6962,149.33,149.3,6.6973]
[1746065617644,6.6962,149.33,149.31,6.697]
[1746065617846,6.6962,149.33,149.26,24.14]
[1746065618853,24.16,149.35,149.26,24.14]
[1746065619154,24.16,149.35,149.32,6.6964]
[1746065619555,30.8556,149.35,149.32,6.6964]
[1746065619753,24.16,149.35,149.32,6.6964]
[1746065619954,24.16,149.35,149.31,6.6969]
[1746065620156,6.696,149.34,149.31,6.6969]
[1746065620856,24.16,149.35,149.3,6.6972]
[1746065621254,24.16,149.35,149.26,24.14]
[1746065621454,6.6959,149.34,149.31,6.6968]
[1746065621957,6.6959,149.34,149.32,6.6966]
[1746065622659,30.8555,149.35,149.32,6.6966]
[1746065624158,6.6958,149.34,149.32,6.6966]
[1746065624757,30.8555,149.35,149.32,6.6966]
[1746065625559,24.16,149.35,149.33,6.6962]
[1746065626564,30.8554,149.35,149.32,6.6965]
[1746065627160,6.6958,149.34,149.32,6.6965]
[1746065627460,6.6958,149.34,149.31,6.6969]
[1746065628554,24.16,149.35,149.31,6.6969]
[1746065628761,6.6963,149.33,149.3,6.6974]
[1746065630464,24.16,149.35,149.29,30.8379]
[1746065630663,31.22982964,149.35,149.26,24.14]
[1746065631063,6.6973,149.31,149.28,6.6982]
[1746065632063,6.6976,149.3,149.28,6.6982]
[1746065632261,31.22982964,149.35,149.27,6.6988]
[1746065632557,7.06982964,149.32,149.23,24.12]
[1746065632759,26.0718,149.31,149.24,6.7001]
[1746065633161,1.9038,149.3,149.24,6.7001]
[1746065633466,6.6991,149.27,149.24,6.7001]
[1746065634865,6.6986,149.28,149.25,6.6998]
[1746065635166,1.9038,149.3,149.23,24.12]
[1746065635365,26.0718,149.31,149.23,24.12]
[1746065635760,6.6977,149.3,149.27,6.6986]
[1746065637463,6.698,149.29,149.27,6.6986]
[1746065637669,6.698,149.29,149.26,6.6991]
[1746065639472,6.6984,149.28,149.25,6.6997]
[1746065640370,26.0718,149.31,149.2,7.06982964]
[1746065640567,7.06982964,149.29,149.19,24.14]
[1746065640871,7.06982964,149.26,149.16,24.14]
[1746065641172,6.7015,149.22,149.18,6.7027]
[1746065641672,6.7008,149.23,149.18,6.7027]
[1746065642373,6.7008,149.23,149.19,6.7023]
[1746065644275,6.7008,149.23,149.2,6.7019]
[1746065645571,28.1974,149.25,149.19,6.7023]
[1746065645874,7.06982964,149.23,149.16,24.14]
[1746065646876,6.7013,149.22,149.19,6.7022]
[1746065648279,6.7016,149.21,149.18,6.7028]
[1746065648578,7.06982964,149.23,149.13,24.14]
[1746065648783,6.7018,149.21,149.17,6.703]
[1746065648981,30.8418,149.21,149.17,6.703]
[1746065649175,30.8418,149.21,149.13,24.14]
[1746065649482,30.8418,149.21,149.18,6.7027]
[1746065649679,24.14,149.21,149.18,6.7027]
[1746065651182,30.8416,149.21,149.18,6.7027]
[1746065652184,24.14,149.21,149.13,24.14]
[1746065652886,30.8418,149.21,149.18,6.7026]
[1746065659798,6.7021,149.2,149.17,6.7032]
[1746065659995,24.14,149.21,149.13,24.14]
[1746065660994,6.7022,149.2,149.17,6.7031]
[1746065663789,24.14,149.21,149.13,24.14]
[1746065664390,30.8417,149.21,149.18,6.7026]
[1746065664992,6.702,149.2,149.18,6.7026]
[1746065665192,24.14,149.21,149.13,24.14]
[1746065665894,6.7026,149.19,149.16,6.7036]
[1746065667592,24.14,149.21,149.13,24.14]
[1746065667892,11.15712964,149.2,149.1,24.12]
[1746065668094,6.7041,149.16,149.13,6.7049]
[1746065668990,6.704,149.16,149.13,6.7049]
[1746065669197,24.12,149.17,149.13,6.7049]
[1746065669695,6.7041,149.16,149.13,6.7049]
[1746065669995,24.12,149.17,149.1,24.12]
[1746065670495,30.8237,149.17,149.1,24.12]
[1746065670889,24.12,149.17,149.1,24.12]
[1746065673097,24.12,149.17,149.15,6.7039]
[1746065676013,24.14,149.2,149.1,31.18982964]
[1746065676902,6.7028,149.19,149.15,6.7039]
[1746065677094,24.14,149.2,149.15,6.7039]
[1746065677295,31.20982964,149.2,149.1,24.12]
[1746065677499,6.7043,149.15,149.12,6.7055]
[1746065678906,24.14,149.16,149.1,24.12]
[1746065679403,24.14,149.16,149.09,8.7373]
[1746065679602,24.14,149.16,149.09,6.707]
[1746065680004,6.7055,149.13,149.09,6.707]
[1746065680204,24.14,149.16,149.08,6.7072]
[1746065680802,24.14,149.16,149.09,6.7068]
[1746065681006,24.14,149.16,149.06,24.14]
[1746065682510,6.7044,149.15,149.12,6.7056]
[1746065682708,24.14,149.16,149.06,24.14]
[1746065682910,28.0377,149.19,149.08,7.06982964]
[1746065683211,24.14,149.19,149.11,7.06982964]
[1746065683514,24.14,149.19,149.12,4.0141]
[1746065684408,24.14,149.22,149.12,4.0141]
[1746065684913,24.14,149.22,149.17,6.7032]
[1746065685303,24.14,149.22,149.12,4.0141]
[1746065685508,6.7024,149.2,149.15,6.7043]
[1746065686115,6.7024,149.2,149.16,6.7038]
[1746065686518,26.2057,149.22,149.12,4.0141]
[1746065686710,7.06982964,149.21,149.12,4.0141]
[1746065686905,7.06982964,149.21,149.13,6.705]
[1746065687110,7.06982964,149.21,149.11,24.14]
[1746065687310,7.06982964,149.18,149.09,1.9715]
[1746065687511,24.14,149.17,149.09,1.9715]
[1746065687813,26.0688,149.17,149.08,26.0803]
[1746065688006,26.0688,149.17,149.09,6.7067]
[1746065688209,1.9629,149.16,149.09,6.7067]
[1746065688719,6.7055,149.13,149.09,6.7067]
[1746065689219,6.7055,149.13,149.1,6.7064]
[1746065691328,6.7059,149.12,149.08,32.7873]
[1746065691518,6.7059,149.12,149.08,8.6473]
[1746065691818,6.7059,149.12,149.08,1.9403]
[1746065692125,1.9629,149.16,149.08,1.9403]
[1746065692521,6.7045,149.15,149.08,1.9403]
[1746065693124,6.7045,149.15,149.11,6.7058]
[1746065694126,6.7048,149.14,149.11,6.7058]
[1746065694424,1.9629,149.16,149.1,6.7064]
[1746065695022,1.9629,149.16,149.11,6.706]
[1746065695820,1.9629,149.16,149.08,1.9403]
[1746065696325,6.7045,149.15,149.11,6.7057]
[1746065697631,6.7045,149.15,149.12,6.7055]
[1746065698221,6.704,149.16,149.13,6.7051]
[1746065698428,26.0688,149.17,149.09,24.12]
[1746065699228,6.7043,149.15,149.12,6.7054]
[1746065700630,26.0688,149.17,149.09,24.12]
[1746065701031,6.7044,149.15,149.12,6.7054]
[1746065701230,26.0688,149.17,149.09,24.12]
[1746065701534,6.7045,149.15,149.11,6.7059]
[1746065701732,6.7045,149.15,149.09,24.12]
[1746065701930,33.13862964,149.17,149.09,24.12]
[1746065702230,6.7053,149.13,149.1,6.7063]
[1746065702430,33.13862964,149.17,149.09,24.12]
[1746065703228,6.7053,149.13,149.1,6.7062]
[1746065703727,33.13862964,149.17,149.09,24.12]
[1746065703933,26.0688,149.17,149.09,24.12]
[1746065704234,30.8437,149.17,149.14,6.7043]
[1746065704734,30.8223,149.2,149.17,6.7033]
[1746065704922,24.12,149.2,149.13,24.12]
[1746065705323,24.12,149.2,149.18,6.7028]
[1746065705835,30.8221,149.2,149.17,6.7032]
[1746065706523,30.8221,149.2,149.16,6.7036]
[1746065707030,24.12,149.23,149.13,24.12]
[1746065707236,24.12,149.23,149.14,3.914]
[1746065708035,24.12,149.26,149.14,3.914]
[1746065708224,6.7004,149.24,149.14,3.914]
[1746065708833,6.7004,149.24,149.2,6.7017]
[1746065709329,6.6999,149.25,149.21,6.7013]
[1746065709530,24.12,149.26,149.18,24.12]
[1746065709832,6.6992,149.27,149.23,6.7003]
[1746065710035,24.12,149.29,149.18,24.12]
[1746065711435,30.8181,149.29,149.25,6.6993]
[1746065711830,4.038,149.31,149.25,6.6993]
[1746065712130,6.6986,149.28,149.24,6.6999]
[1746065712331,4.038,149.31,149.23,24.1]
[1746065712729,6.6986,149.28,149.23,24.1]
[1746065713136,6.6981,149.29,149.25,6.6995]
[1746065713336,4.038,149.31,149.23,24.1]
[1746065713633,6.6973,149.31,149.27,6.6985]
[1746065715238,24.1,149.32,149.24,2.0648]
[1746065715834,24.1,149.32,149.27,6.6986]
[1746065716142,6.6974,149.31,149.27,6.6986]
[1746065716438,6.6974,149.31,149.24,2.0648]
[1746065717238,30.7968,149.32,149.24,2.0648]
[1746065717539,30.7968,149.32,149.28,6.6981]
[1746065717744,24.1,149.35,149.27,24.1]
[1746065718341,6.6963,149.33,149.29,6.6977]
[1746065718944,24.1,149.35,149.27,24.1]
[1746065719547,6.6974,149.31,149.27,30.7988]
[1746065721641,24.1,149.35,149.27,30.7988]
[1746065721944,24.1,149.35,149.24,26.1648]
[1746065722345,6.6988,149.28,149.24,32.8646]
[1746065722546,6.6988,149.28,149.24,26.1648]
[1746065723248,6.6988,149.28,149.25,6.6998]